Cogmind - Beta 13 @@@ ROGUE MODE // 2024.04.01 @ 00:01:27 Player: autoYotsuba Result: Destroyed by L-31 Rogue with Katana Performance ------------- Evolutions (1) 500 Regions Visited (2) 400 Robots Destroyed (20) 100 Value Destroyed (427) 427 Prototype IDs (3) 60 Alien Tech Used (0) 0 Bonus (0) 0 TOTAL SCORE: 1487 Bonus ------- None Cogmind --------- Core Integrity 0/400 Matter 290/300 Energy 80/100 System Corruption 2% Temperature Cool (26) Movement Core (50) Location -9/Materials Parts ------- > --- POWER (2) -------- (None) > --- PROPULSION (2) --- (None) > --- UTILITY (2) ------ (None) > --- WEAPON (3) ------- Particle Gun > --- INVENTORY (5) ---- Heat Sink Terrain Scanner Peak State ------------ > --- POWER ------------ Ion Engine > --- PROPULSION ------- Aluminum Leg Compact Wheel > --- UTILITY ---------- Weight Redist. System Hardened Light Armor Plating > --- WEAPON ----------- Small Laser Particle Gun Advanced Beam Cannon > --- INVENTORY -------- Heat Sink Terrain Scanner [Rating: 13] Favorites ----------- Power Ion Engine Engine Ion Engine Propulsion Aluminum Leg Leg Aluminum Leg Wheel Wheel Utility Signal Interpreter Device Field Recycling Unit Processor Signal Interpreter Protection Hardened Light Armor Plating Weapon Grenade Launcher Energy Gun EM Pulse Gun Energy Cannon Advanced Beam Cannon Ballistic Gun Assault Rifle Launcher Grenade Launcher Build | -11 -10 -9 ------- Run | Yrd Mat Mat Slots Evolved 2 | . . 2 Power 1 | . . 1 Propulsion . | . . . Utility . | . . . Weapon 1 | . . 1 Parts Attached 30 | 8 8 14 Power 6 | 2 3 1 Engine 6 | 2 3 1 Core . | . . . Reactor . | . . . Propulsion 4 | 3 . 1 Treads . | . . . Leg 1 | 1 . . Wheel 3 | 2 . 1 Hover . | . . . Flight . | . . . Utility 7 | . 3 4 Device 4 | . 2 2 Storage . | . . . Processor 1 | . 1 . Hackware . | . . . Protection 2 | . . 2 Artifact . | . . . Weapon 13 | 3 2 8 Energy Gun 7 | 2 . 5 Energy Cannon 3 | . . 3 Ballistic Gun 2 | 1 1 . Ballistic Cannon . | . . . Launcher 1 | . 1 . Special Weapon . | . . . Impact Weapon . | . . . Slashing Weapon . | . . . Piercing Weapon . | . . . Special Melee Weapon . | . . . Unidentified Prototypes 1 | . . 1 Parts Lost 11 | . . 11 Power 1 | . . 1 Propulsion 3 | . . 3 Utility 2 | . . 2 Weapon 5 | . . 5 Highest Loss Streak 4 | . . 4 To Critical Strikes . | . . . Average Slot Usage (%) 81 | . 93 66 Engine 11 | . 14 8 Leg 11 | . 14 9 Wheel 10 | . 14 7 Device 8 | . 9 8 Processor 9 | . 12 5 Protection 2 | . . 5 Energy Gun 3 | . 1 7 Energy Cannon 3 | . . 7 Ballistic Gun 8 | . 14 2 Launcher 9 | . 12 5 Naked Turns 10 | . . 10 Heaviest Build 23 | 7 19 23 Greatest Support 22 | 10 10 22 Greatest Overweight (x) 2 | . 1 2 Average Overweight (x) . | . . . Largest Inventory Capacity 5 | 5 5 5 Average Capacity 5 | 5 5 5 Most Carried 5 | 5 5 5 Average Carried 3 | 2 4 2 Final Capacity 5 | 5 5 5 Final Carried 5 | 5 5 3 Class Distribution -------------------- 88% | Mutant 9% | Bomber Dominant Class ---------------- Mutant | -10/Materials Mutant | -9/Materials Resources | -11 -10 -9 ----------- Run | Yrd Mat Mat Matter Collected 466 | 284 74 108 Remotely . | . . . Salvage Created 632 | 38 150 444 Parts 44 | 3 11 30 Haulers Intercepted . | . . . Recyclers Shooed 2 | . 1 1 Parts Field Recycled 20 | . 20 . Retrieved Matter 155 | . 155 . Parts Self-Destructed . | . . . Prevented . | . . . Kills | -11 -10 -9 ------- Run | Yrd Mat Mat Combat Hostiles Destroyed 13 | 1 2 10 Melee 1 | . . 1 Guns 3 | 1 . 2 Cannons 3 | . . 3 AOE 6 | . 2 4 Classes Destroyed 6 | 1 2 3 Worker 3 | . . 3 Recycler 3 | . 2 1 Watcher 1 | . 1 . Swarmer 4 | . . 4 Grunt 8 | 1 2 5 Sentry 1 | . . 1 Best Kill Streak 6 | 1 3 6 Combat Bots Only 5 | 1 2 5 Max Kills in Single Turn 3 | 1 2 3 Gunslinging . | . . . Exploded 3 | . 1 3 Melee 1 | . . 1 Uniques/NPCs Destroyed . | . . . Combat | -11 -10 -9 -------- Run | Yrd Mat Mat Hostile Shots Fired 159 | 5 3 151 Missed 45 | 1 1 43 Damage Taken 1301 | 46 62 1193 Core 444 | 11 20 413 Absorbed by Shields . | . . . Core Remaining (%) 91 | 95 87 . Volleys Fired 40 | 3 4 33 Largest 3 | 2 2 3 Hottest 173 | 70 50 173 Shots Fired 65 | 6 7 52 Gun 37 | 6 3 28 Cannon 21 | . . 21 Launcher 7 | . 4 3 Special . | . . . Kinetic 6 | 3 3 . Thermal 39 | 3 . 36 Explosive 7 | . 4 3 Electromagnetic 13 | . . 13 Robot Hit Streak 6 | 6 2 4 Robot Miss Streak 7 | . 2 7 Penetration Max . | . . . Secondary Targets . | . . . Shots Hit Robots 28 | 6 2 20 Core Hits 43 | 2 9 32 Critical Kills . | . . . Critical Parts Destroyed . | . . . Critical Strikes . | . . . Melee Attacks . | . . . Impact . | . . . Slashing . | . . . Piercing . | . . . Sneak Attacks . | . . . Combat Hostiles . | . . . Follow-up Attacks . | . . . Damage Inflicted 1111 | 82 260 769 Guns 286 | 78 12 196 Cannons 267 | . . 267 Explosions 498 | . 248 250 Melee . | . . . Ramming 60 | 4 . 56 Kinetic 52 | 40 12 . Thermal 401 | 38 . 363 Explosive 498 | . 248 250 Electromagnetic 100 | . . 100 Impact . | . . . Slashing . | . . . Piercing . | . . . Highest Corruption 2 | . 1 2 Average Corruption 1 | . 1 2 Corruption Purged . | . . . Corruption Blocked . | . . . Effects 1 | . . 1 Energy Discharges 1 | . . 1 Overload Shots . | . . . Overflow Damage . | . . . Projectiles . | . . . Explosions . | . . . Melee . | . . . Knockbacks . | . . . Impact . | . . . Kinetic . | . . . Secondary . | . . . Self-Inflicted Damage 66 | 2 40 24 Shots 1 | . 1 . Rammed 29 | 1 . 28 Targets Rammed 29 | 1 . 28 Kicked . | . . . Crushed . | . . . Highest Temperature 542 | 30 . 542 Average Temperature 157 | 18 . 168 Received Heat Transfer 339 | 24 12 303 Effects 5 | . . 5 Shutdowns 1 | . . 1 Energy Bleed 2 | . . 2 Interference 2 | . . 2 Siege Activations . | . . . Robots Corrupted . | . . . Combat Hostiles . | . . . Parts Fried . | . . . Impact Corruptions 1 | . . 1 Robots Melted . | . . . Combat Hostiles . | . . . Parts Melted . | . . . Heat Transferred 827 | 111 . 716 Parts Sabotaged . | . . . Parts Stolen . | . . . Parts Stripped . | . . . Power Chain Reactions . | . . . Alert | -11 -10 -9 ------- Run | Yrd Mat Mat Peak Influence 165 | 20 154 165 Initial 13 | . 13 . Average 34 | 3 45 29 Maximum Alert Level . | . . . Low Security (%) 100 | 100 100 100 Level 1 . | . . . Level 2 . | . . . Level 3 . | . . . Level 4 . | . . . Level 5 . | . . . High Security . | . . . Max Security . | . . . Squads Dispatched 3 | . 2 1 Investigation 2 | . 2 . Extermination . | . . . Reinforcement 1 | . . 1 Assault . | . . . Garrison . | . . . Intercept . | . . . Searches Triggered . | . . . Construction Impeded . | . . . Haulers Reinforced . | . . . Active Scanning Responses . | . . . Cargo Convoy Interrupts . | . . . Stealth | -11 -10 -9 --------- Run | Yrd Mat Mat Distress Signals 1 | . . 1 Communications Jammed . | . . . Distress Signals . | . . . Times Spotted 27 | 1 3 23 Peak Tracking Total 11 | 1 2 11 Tactical Retreats . | . . . Traps | -11 -10 -9 ------- Run | Yrd Mat Mat Traps Triggered 1 | . 1 . Indirectly . | . . . Trap Hack Attempts . | . . . Triggered . | . . . Disarmed . | . . . Reprogrammed 4 | . 4 . Reused . | . . . Traps Extracted . | . . . Installed . | . . . Triggered . | . . . Machines | -11 -10 -9 ---------- Run | Yrd Mat Mat Machines Disabled 2 | . 1 1 Max in Single Turn 1 | . 1 1 Machines Repaired . | . . . Machines Dismantled . | . . . Machines Sabotaged . | . . . Overloaded Fab Kills . | . . . Hacking | -11 -10 -9 --------- Run | Yrd Mat Mat Machines Accessed 6 | . 3 3 Terminals 6 | . 3 3 Fabricators . | . . . Repair Stations . | . . . Recycling Units . | . . . Scanalyzers . | . . . Garrison Access . | . . . Total Hacks 22 | . 14 8 Successful 12 | . 10 2 Failed 10 | . 4 6 Catastrophic 2 | . 1 1 Database Lockouts . | . . . Manual 3 | . 1 2 Terminals 22 | . 14 8 Fabricators . | . . . Repair Stations . | . . . Recycling Units . | . . . Scanalyzers . | . . . Garrison Access . | . . . Terminal Hacks 12 | . 10 2 Record 4 | . 2 2 Prototype ID Bank 1 | . 1 . Alert Level 1 | . 1 . Locate Traps 1 | . 1 . Reprogram Traps 1 | . 1 . Dispatch Records 2 | . 2 . Security Status 1 | . 1 . Zone Layout 1 | . 1 . Fabricator Hacks . | . . . Repair Station Hacks . | . . . Recycling Unit Hacks . | . . . Scanalyzer . | . . . Garrison Access Hacks . | . . . Unauthorized Hacks . | . . . Terminals . | . . . Fabricators . | . . . Repair Stations . | . . . Recycling Units . | . . . Scanalyzers . | . . . Garrison Access . | . . . Data Cores Recovered . | . . . Used . | . . . Hacking Detections 5 | . 3 2 Full Trace Events 3 | . 2 1 Feedback Events 1 | . 1 . Corruption 1 | . 1 . Feedback Blocked . | . . . Robot Schematics Acquired . | . . . Robots Built . | . . . Authchips . | . . . Time . | . . . Total Robot Build Rating . | . . . Part Schematics Acquired . | . . . Parts Built . | . . . Authchips . | . . . Time . | . . . Total Part Build Rating . | . . . Parts Repaired . | . . . Time . | . . . Parts Recycled . | . . . Recycled Matter . | . . . Retrieved Matter . | . . . Retrieved Components . | . . . Parts Scanalyzed . | . . . Part Schematics Acquired . | . . . Parts Damaged . | . . . Bothacking | -11 -10 -9 ------------ Run | Yrd Mat Mat Used RIF Installer . | . . . Robots Hacked . | . . . Non-combat . | . . . Combat . | . . . Robot Hacks Applied . | . . . Relay Couplers Released . | . . . Fabnet Peak Effective % . | . . . Robots Rewired . | . . . Allies Hacked . | . . . Hacks Repelled . | . . . Allies | -11 -10 -9 -------- Run | Yrd Mat Mat Total Allies . | . . . Largest Group . | . . . Highest-Rated Group . | . . . Highest-Rated Ally . | . . . Total Orders . | . . . Ally Attacks . | . . . Total Damage . | . . . Kills . | . . . Allies Corrupted . | . . . Allies Melted . | . . . Intel | -11 -10 -9 ------- Run | Yrd Mat Mat Robot Analysis Total . | . . . Derelict Logs Recovered . | . . . Drone Launches . | . . . Drone Recoveries . | . . . Exploration | -11 -10 -9 ------------- Run | Yrd Mat Mat Turns Passed 1710 | 175 819 716 Spaces Moved 1310 | 185 605 520 Core 242 | 49 . 193 Treads . | . . . Legs 351 | 18 265 68 Wheels 717 | 118 340 259 Hover . | . . . Flight . | . . . Fastest Speed 50 | 50 80 50 Average Speed 113 | 75 128 107 Slowest Speed 260 | 120 190 260 Overloaded Moves . | . . . Propulsion Burnouts . | . . . Robots Hopped . | . . . Cave-ins Triggered . | . . . Exploration Rate (%) 24 | 5 42 25 Regions Visited 2 Branch Regions . Pre-discovered Areas . | . . . Known Exits Taken 1 | . 1 . Unknown Exits Taken 1 | 1 . . Scrap Searched . | . . . Spaces Dug . | . . . Terrain Destroyed 52 | . 33 19 Melee . | . . . Projectile 1 | . . 1 AOE 51 | . 33 18 Terrain Rammed . | . . . Walls Destroyed . | . . . Machines Disabled . | . . . Actions | -11 -10 -9 --------- Run | Yrd Mat Mat Total 1484 | 215 644 625 Wait 7 | 1 3 3 Move 1308 | 184 604 520 Hop . | . . . Pick Up 35 | 13 11 11 Fast Attach 1 | . 1 . Attach 28 | 8 6 14 Detach 14 | 2 4 8 Swap 1 | . 1 . Drop 21 | 3 10 8 Fire 40 | 3 4 33 Melee . | . . . Ram 29 | 1 . 28 Kick . | . . . Crush . | . . . Escape Stasis . | . . . Rewire . | . . . Trap . | . . . Miscellaneous . | . . . Route ------- -11/Scrapyard -10/Materials -9/Materials History --------- Turn | Location | Event 2 | -11/Scrapyard | Met Revision 17 135 | -11/Scrapyard | Discovered new exit (range 8) 176 | -11/Scrapyard | Entered Materials 312 | -10/Materials | Build established: Mutant 442 | -10/Materials | Discovered new exit (range 15) 488 | -10/Materials | Identified exit to Materials 995 | -10/Materials | Entered another Materials area 995 | -9/Materials | Evolved 2 slots: Power x1, Weapon x1 1588 | -9/Materials | Lost 4 parts (1p1n1u1w) 1690 | -9/Materials | Core integrity fell below 50% 1700 | -9/Materials | Core integrity fell below 20% 1711 | -9/Materials | Destroyed by L-31 Rogue with Katana Last Messages --------------- K-01 Serf collects debris. R-06 Scavenger collects Lgt. Assault Rifle. Slammed into A-02 Transporter. K-01 Serf collects debris. R-06 Scavenger collects Flight Unit. W-16 Scout sends out distress signal. K-01 Serf destroyed. K-01 Serf collects debris. Adv. Beam Cannon destroyed. Slammed into K-01 Serf. Destroyed Sml. Matter Pod. K-01 Serf system corrupted by crushing effect. K-01 Serf system terminally corrupted. Slammed into W-16 Scout. Destabilizing: Core damaged (-20). Slammed into A-02 Transporter. Broken Weight Redist. System destroyed. U-05 Engineer builds a Door. Acquired Particle Gun. [Achievement: First Step to Greatness] Map ----- +----------------------------------------------------+ | ?????????????????????????????????????????????????? | | ?????????????????????????????????????????????????? | | ?????????????????? ????????????????????????????? | | ?????????????????? #???????????????????????????? | | ?????????????????? #???????????????????????????? | | ?????????????????# #???????????????????????????? | | ?????????????????# #???????????????????????????? | | ?????????????????# #???????????????????????????? | | ?????????????????# #???????????????????????????? | | ?????????????????# #???????????????????????????? | | ?????????????????# #???????????????????????????? | | ?????????????????# #???????????????????????????? | | ?????????????????# #???????????????????????????? | | ?????????????????# #???????????????????????????? | | ?????????????????# #???????????????????????????? | | ?????????????????# #???????????????????????????? | | ################## #???????????????????????????? | | ##########??????????????????? | | % % % # #??????????????????? | | % % =# """ #??????????????????? | | % %% % %g """ ##### ????????????? | | % =#g""" + ???????????? | | ##################%%%#gu g #??????????????????? | | ?????????????????# # #??????????????????? | | ?????????????????# # l[[ #??????????????????? | | ?????????????????# # @[ #??????????????????? | | ?????????????????#% # [[ #??????????????????? | | ?????????????????# ##########??????????????????? | | ?????????????????# #???????????????????????????? | | ?????????????????# #???????????????????????????? | | ?????????????????# #???????????????????????????? | | ?????????????????# #???????????????????????????? | | ##???????????????# #???????????????????????????? | | #??????????????? ???????????????????????????? | | #??????????????? ???????????????????????????? | | #?????????????? +??????????????????????????? | | #?????????????? #??????????????????????????? | | #??????????????#[ #??????????????????????????? | | #??????????????## ##??????????????????????????? | | #???????????????# #???????????????????????????? | | ##???????????????# #???????????????????????????? | | ?????????????????? ????????????????????????????? | | ?????????????????????????????????????????????????? | | ?????????????????????????????????????????????????? | | ?????????????????????????????????????????????????? | | ?????????????????????????????????????????????????? | | ?????????????????????????????????????????????????? | | ?????????????????????????????????????????????????? | | ?????????????????????????????????????????????????? | | ?????????????????????????????????????????????????? | +----------------------------------------------------+ Best States ------------- Heat Dissipation 35 Energy Generation 10 Energy Capacity 250 Matter Stores 300 Matter Capacity 300 Sight Range 16 Terrain Scan Density 10 Additional Mass Support 6 Armor Coverage 150 Evasion (%) 50 Item Schematics ----------------- None Robot Schematics ------------------ None Fabricated ------------ Nothing Alien Tech Used ----------------- None Achievements -------------- First Step to Greatness Fist Fight One Hack Too Far Risk Taker Storm Trooper Uninvited Guest Challenges ------------ None Game ------ Seed MagneticHypervelocityKit Manual? 0 Play Time 00:55:04 Cumulative 0.8 hours Start 2024.03.31 @ 23:04:24 End 2024.04.01 @ 00:01:27 Sessions 1 Manual Loads 0 Difficulty Rogue Special Mode None Game No. 1 Rogue 1 Adventurer 0 Explorer 0 Win Type - Total 0 Types 0/0/0/0/0/0/0/0/0 Lore% 0 Gallery% 1 Achievement% 2 Wizard Run 0 Options --------- Layout 1 ASCII 0 Keyboard 0 Movement Arrows Keybinds 0 Fullscreen 1 Font 24/Tamsyn Map View 50x35 Zoom Use 0% Tactical HUD 0 Map Filters NONE Filters NONE Steam 1 RUN: 1acf9837-0b6c-4596-9258-705ac742c053